Cogmind - Beta 15 @@@ ROGUE MODE // 2025.08.06 @ 21:47:57 Player: Zoe Result: Destroyed by D-53 Grenadier with Mini Grenade Launcher Performance ------------- Evolutions (0) 0 Regions Visited (4) 800 Robots Destroyed (10) 50 Value Destroyed (324) 324 Prototype IDs (23) 460 Alien Tech Used (0) 0 Bonus (300) 300 TOTAL SCORE: 1934 Bonus ------- Aligned with FarCom 300 Cogmind --------- Core Integrity 0/250 Matter 300/300 Energy 100/100 System Corruption 0% Temperature Cool (0) Movement Core (100) Ox1 Location -9/Mines Parts ------- > --- POWER (1) -------- (None) > --- PROPULSION (2) --- (None) > --- UTILITY (2) ------ Small Storage Unit Structural Scanner > --- WEAPON (2) ------- (None) > --- INVENTORY (8) ---- Flying Fortress v7 Improved Heat Sink Particle Gun Light Assault Rifle Peak State ------------ > --- POWER ------------ Light Nuclear Core > --- PROPULSION ------- Light Treads Light Treads > --- UTILITY ---------- Small Storage Unit Improved Terrain Scanner > --- WEAPON ----------- Particle Gun Particle Gun > --- INVENTORY -------- Light Ion Engine Light Ion Engine Aluminum Leg Aluminum Leg Assault Rifle Light Assault Rifle Mining Laser [Rating: 13] Favorites ----------- Power Light Ion Engine Engine Light Ion Engine Power Core Light Nuclear Core Propulsion Light Treads Treads Light Treads Utility Small Storage Unit Device Structural Scanner Storage Small Storage Unit Weapon Particle Gun Energy Gun Particle Gun Ballistic Gun Light Assault Rifle Build | -11 -10 -10 -10 -9 ------- Run | Yrd Mat Min Exi Min Slots Evolved . | . . . . . Power . | . . . . . Propulsion . | . . . . . Utility . | . . . . . Weapon . | . . . . . Parts Attached 14 | 7 4 2 . 1 Power 4 | 1 1 1 . 1 Engine 3 | 1 . 1 . 1 Core 1 | . 1 . . . Reactor . | . . . . . Propulsion 2 | 2 . . . . Treads 2 | 2 . . . . Leg . | . . . . . Wheel . | . . . . . Hover . | . . . . . Flight . | . . . . . Utility 3 | 2 1 . . . Device 2 | 1 1 . . . Storage 1 | 1 . . . . Processor . | . . . . . Hackware . | . . . . . Protection . | . . . . . Artifact . | . . . . . Weapon 5 | 2 2 1 . . Energy Gun 3 | . 2 1 . . Energy Cannon . | . . . . . Ballistic Gun 2 | 2 . . . . Ballistic Cannon . | . . . . . Launcher . | . . . . . Special Weapon . | . . . . . Impact Weapon . | . . . . . Slashing Weapon . | . . . . . Piercing Weapon . | . . . . . Special Melee Weapon . | . . . . . Unidentified Prototypes . | . . . . . Parts Lost 7 | . 1 . . 6 Power 2 | . . . . 2 Propulsion 2 | . . . . 2 Utility . | . . . . . Weapon 3 | . 1 . . 2 Highest Loss Streak 6 | . 1 . . 6 To Critical Strikes . | . . . . . Average Backups 5 | 3 6 7 6 4 Power 1 | . 1 2 2 . Propulsion 1 | 1 2 . . 1 Utility . | . . . 1 1 Weapon 2 | 1 2 3 2 2 Tool/Special . | . . . . . Unused Backups 6 | . . 2 1 3 Power . | . . . . . Propulsion 3 | . . 2 . 1 Utility 1 | . . . . 1 Weapon 2 | . . . 1 1 Tool/Special . | . . . . . Average Slot Usage (%) 97 | . 99 100 100 75 Engine 10 | . 7 8 14 12 Core 3 | . 7 5 . . Treads 26 | . 28 28 28 14 Device 14 | . 14 14 14 14 Storage 14 | . 14 14 14 14 Energy Gun 18 | . 8 28 28 20 Ballistic Gun 8 | . 19 . . . Peak Build Rating 13 | 9 13 12 12 12 Average Rating 9 | 5 10 10 10 9 On Entrance 8 | . 9 12 10 12 Naked Turns . | . . . . . Heaviest Build 17 | 12 17 17 15 17 Greatest Support 40 | 40 40 40 40 40 Greatest Overweight (x) 4 | . . . . 4 Average Overweight (x) . | . . . . . Largest Inventory Capacity 8 | 8 8 8 8 8 Average Capacity 7 | 7 8 8 8 8 Most Carried 8 | 6 8 8 8 8 Average Carried 6 | 3 6 7 7 7 Final Capacity 8 | 8 8 8 8 8 Final Carried 8 | 5 8 7 8 7 Class Distribution -------------------- 100% | Mutant Dominant Class ---------------- Mutant | -10/Materials Mutant | -10/Mines Mutant | -10/Exiles Mutant | -9/Mines Resources | -11 -10 -10 -10 -9 ----------- Run | Yrd Mat Min Exi Min Matter Collected 454 | 292 122 30 . 10 Remotely . | . . . . . Salvage Created 432 | 97 250 85 . . Parts 33 | 7 18 8 . . Haulers Intercepted . | . . . . . Recyclers Shooed . | . . . . . Parts Field Recycled . | . . . . . Retrieved Matter . | . . . . . Parts Self-Destructed . | . . . . . Prevented . | . . . . . Kills | -11 -10 -10 -10 -9 ------- Run | Yrd Mat Min Exi Min Combat Hostiles Destroyed 8 | . 6 2 . . Guns 8 | . 6 2 . . Classes Destroyed 3 | 2 1 . . . Tunneler 1 | 1 . . . . Recycler 1 | 1 . . . . Grunt 8 | . 6 2 . . Best Kill Streak 2 | 2 2 2 . . Combat Bots Only 2 | . 2 2 . . Max Kills in Single Turn 2 | 1 1 2 . . Gunslinging . | . . . . . Exploded . | . . . . . Melee . | . . . . . Uniques/NPCs Destroyed . | . . . . . Combat | -11 -10 -10 -10 -9 -------- Run | Yrd Mat Min Exi Min Hostile Shots Fired 78 | . 28 3 . 47 Missed 19 | . 6 2 . 11 Hits 59 | . 22 1 . 36 Projectile 59 | . 22 1 . 36 AOE 12 | . . . . 12 Part Disruptions 1 | . . . . 1 Damage Taken 1022 | . 262 15 . 745 Core 268 | . 23 . . 245 Absorbed by Shields . | . . . . . Core Remaining (%) 100 | 100 . . . . Volleys Fired 34 | 8 23 2 . 1 Largest 2 | 2 2 2 . 1 Hottest 130 | 40 130 130 . 65 Shots Fired 64 | 16 43 4 . 1 Gun 64 | 16 43 4 . 1 Cannon . | . . . . . Launcher . | . . . . . Special . | . . . . . Kinetic 53 | 16 37 . . . Thermal 11 | . 6 4 . 1 Explosive . | . . . . . Electromagnetic . | . . . . . Robot Hit Streak 6 | 6 6 2 . . Robot Miss Streak 3 | 3 3 1 . 1 Penetration Max . | . . . . . Secondary Targets . | . . . . . Shots Hit Robots 42 | 11 28 3 . . Core Hits 19 | 3 13 3 . . Critical Kills . | . . . . . Critical Parts Destroyed . | . . . . . Critical Strikes . | . . . . . Melee Attacks . | . . . . . Impact . | . . . . . Slashing . | . . . . . Piercing . | . . . . . Sneak Attacks . | . . . . . Combat Hostiles . | . . . . . Follow-up Attacks . | . . . . . Damage Inflicted 497 | 112 325 60 . . Guns 497 | 112 325 60 . . Cannons . | . . . . . Explosions . | . . . . . Melee . | . . . . . Ramming . | . . . . . Kinetic 403 | 112 291 . . . Thermal 94 | . 34 60 . . Explosive . | . . . . . Electromagnetic . | . . . . . Impact . | . . . . . Slashing . | . . . . . Piercing . | . . . . . Highest Corruption . | . . . . . Average Corruption . | . . . . . Corruption Purged . | . . . . . Corruption Blocked . | . . . . . Overload Shots . | . . . . . Overflow Damage . | . . . . . Projectiles . | . . . . . Explosions . | . . . . . Melee . | . . . . . Knockbacks . | . . . . . Impact . | . . . . . Kinetic . | . . . . . Secondary . | . . . . . Self-Inflicted Damage . | . . . . . Shots . | . . . . . Rammed . | . . . . . Targets Rammed . | . . . . . Kicked . | . . . . . Crushed . | . . . . . Highest Temperature 159 | . 150 159 . 24 Average Temperature 42 | . 32 82 . 12 Received Heat Transfer 281 | . 144 9 . 128 Siege Activations . | . . . . . Martial Activations . | . . . . . Shielding Activations . | . . . . . Robots Disrupted . | . . . . . Combat Hostiles . | . . . . . Robots Corrupted . | . . . . . Combat Hostiles . | . . . . . Parts Fried . | . . . . . Impact Corruptions . | . . . . . Robots Melted . | . . . . . Combat Hostiles . | . . . . . Parts Melted . | . . . . . Heat Transferred 222 | . 74 148 . . Parts Sabotaged . | . . . . . Parts Stolen . | . . . . . Parts Stripped . | . . . . . Power Chain Reactions . | . . . . . Alert | -11 -10 -10 -10 -9 ------- Run | Yrd Mat Min Exi Min Maximum Alert Level . | . . . . . Low Security (%) 100 | 100 100 100 . 100 Level 1 . | . . . . . Level 2 . | . . . . . Level 3 . | . . . . . Level 4 . | . . . . . Level 5 . | . . . . . High Security . | . . . . . Max Security . | . . . . . Peak Influence 130 | 10 130 83 . . Initial 33 | . . 33 . . Average 40 | . 57 67 . . Influence Increases 281 | 10 221 50 . . Destroy 0b10 Robot/C 160 | . 120 40 . . Destroy 0b10 Robot/NC 10 | 10 . . . . Destroy Leader 30 | . 20 10 . . Successful Hack 21 | . 21 . . . Lose Combat Pursuer 60 | . 60 . . . Influence Decreases 281 | 10 135 83 53 . Entered New Map 106 | . . 53 53 . Time Decay 165 | 10 125 30 . . Lost Part 10 | . 10 . . . Squads Dispatched 1 | . 1 . . . Investigation 1 | . 1 . . . Extermination . | . . . . . Reinforcement . | . . . . . Assault . | . . . . . Garrison . | . . . . . Intercept . | . . . . . Searches Triggered . | . . . . . Construction Impeded . | . . . . . Haulers Reinforced . | . . . . . Active Scanning Responses . | . . . . . Cargo Convoy Interrupts . | . . . . . Stealth | -11 -10 -10 -10 -9 --------- Run | Yrd Mat Min Exi Min Distress Signals 3 | . 3 . . . Communications Jammed . | . . . . . Distress Signals . | . . . . . Times Spotted 44 | . 16 2 . 26 Peak Tracking Total 25 | . 6 2 . 25 Tactical Retreats 3 | . 2 . . 1 Traps | -11 -10 -10 -10 -9 ------- Run | Yrd Mat Min Exi Min Traps Triggered . | . . . . . Indirectly . | . . . . . Trap Hack Attempts . | . . . . . Triggered . | . . . . . Disarmed . | . . . . . Reprogrammed . | . . . . . Reused . | . . . . . Traps Extracted . | . . . . . Installed . | . . . . . Triggered . | . . . . . Machines | -11 -10 -10 -10 -9 ---------- Run | Yrd Mat Min Exi Min Machines Disabled . | . . . . . Max in Single Turn . | . . . . . Machines Repaired . | . . . . . Machines Dismantled . | . . . . . Machines Sabotaged . | . . . . . Overloaded Fab Kills . | . . . . . Hacking | -11 -10 -10 -10 -9 --------- Run | Yrd Mat Min Exi Min Machines Accessed 4 | . 3 . 1 . Terminals 3 | . 3 . . . Fabricators . | . . . . . Repair Stations . | . . . . . Recycling Units . | . . . . . Scanalyzers . | . . . . . Garrison Access . | . . . . . Total Hacks 11 | . 10 . 1 . Successful 6 | . 5 . 1 . Failed 5 | . 5 . . . Catastrophic . | . . . . . Database Lockouts . | . . . . . Manual 7 | . 6 . 1 . Terminals 10 | . 10 . . . Fabricators . | . . . . . Repair Stations . | . . . . . Recycling Units . | . . . . . Scanalyzers . | . . . . . Garrison Access . | . . . . . Terminal Hacks 3 | . 2 . 1 . Robot Analysis 1 | . 1 . . . Branch Access Points 1 | . 1 . . . Proto ID Catalog 1 | . . . 1 . Fabricator Hacks . | . . . . . Repair Station Hacks . | . . . . . Recycling Unit Hacks . | . . . . . Scanalyzer . | . . . . . Garrison Access Hacks . | . . . . . Unauthorized Hacks 3 | . 3 . . . Terminals 3 | . 3 . . . Botnet 3 | . 3 . . . Fabricators . | . . . . . Repair Stations . | . . . . . Recycling Units . | . . . . . Scanalyzers . | . . . . . Garrison Access . | . . . . . Data Cores Recovered . | . . . . . Used . | . . . . . Hacking Detections 3 | . 3 . . . Full Trace Events 2 | . 2 . . . Feedback Events . | . . . . . Feedback Blocked . | . . . . . Robot Schematics Acquired . | . . . . . Robots Built . | . . . . . Authchips . | . . . . . Time . | . . . . . Total Robot Build Rating . | . . . . . Part Schematics Acquired . | . . . . . Parts Built . | . . . . . Authchips . | . . . . . Time . | . . . . . Total Part Build Rating . | . . . . . Parts Repaired . | . . . . . Time . | . . . . . Parts Recycled . | . . . . . Recycled Matter . | . . . . . Retrieved Matter . | . . . . . Retrieved Components . | . . . . . Parts Scanalyzed . | . . . . . Part Schematics Acquired . | . . . . . Parts Damaged . | . . . . . Bothacking | -11 -10 -10 -10 -9 ------------ Run | Yrd Mat Min Exi Min Used RIF Installer . | . . . . . Robots Hacked . | . . . . . Non-combat . | . . . . . Combat . | . . . . . Robot Hacks Applied . | . . . . . Relay Couplers Released . | . . . . . Fabnet Peak Effective % . | . . . . . Robots Rewired . | . . . . . Allies Hacked . | . . . . . Hacks Repelled . | . . . . . Allies | -11 -10 -10 -10 -9 -------- Run | Yrd Mat Min Exi Min Total Allies . | . . . . . Largest Group . | . . . . . Highest-Rated Group . | . . . . . Highest-Rated Ally . | . . . . . Total Orders . | . . . . . Ally Attacks . | . . . . . Total Damage . | . . . . . Kills . | . . . . . Allies Corrupted . | . . . . . Allies Melted . | . . . . . Intel | -11 -10 -10 -10 -9 ------- Run | Yrd Mat Min Exi Min Active Infowar (turns) 884 | 14 388 70 336 76 Terrain 303 | 14 289 . . . Structural 581 | . 99 70 336 76 Robot Analysis Total 1 | . 1 . . . Derelict Logs Recovered . | . . . . . Drone Launches . | . . . . . Drone Recoveries . | . . . . . Exploration | -11 -10 -10 -10 -9 ------------- Run | Yrd Mat Min Exi Min Turns Passed 1013 | 143 388 70 336 76 Spaces Moved 544 | 68 184 36 209 47 Core 21 | 5 . . . 16 Treads 523 | 63 184 36 209 31 Legs . | . . . . . Wheels . | . . . . . Hover . | . . . . . Flight . | . . . . . Fastest Speed 50 | 50 160 160 160 100 Average Speed 158 | 151 160 160 160 151 Slowest Speed 250 | 160 160 160 160 250 Overloaded Moves . | . . . . . Propulsion Burnouts . | . . . . . Robots Hopped . | . . . . . Potential Cave-ins . | . . . . . Cave-ins Triggered . | . . . . . Exploration Rate (%) 28 | 5 46 16 61 16 Regions Visited 4 Branch Regions 3 Pre-discovered Areas . | . . . . . Known Exits Taken 1 | . 1 . . . Unknown Exits Taken 3 | 1 . 1 1 . Scrap Searched . | . . . . . Spaces Dug . | . . . . . Terrain Destroyed . | . . . . . Melee . | . . . . . Projectile . | . . . . . AOE . | . . . . . Terrain Rammed . | . . . . . Walls Destroyed . | . . . . . Machines Disabled . | . . . . . Actions | -11 -10 -10 -10 -9 --------- Run | Yrd Mat Min Exi Min Total 637 | 92 236 47 212 50 Wait 22 | . 21 . . 1 Move 540 | 67 183 35 208 47 Hop . | . . . . . Pick Up 18 | 10 4 3 1 . Fast Attach 2 | 2 . . . . Attach 7 | 5 1 . . 1 Detach . | . . . . . Swap 6 | . 4 2 . . Drop 8 | . . 5 3 . Fire 34 | 8 23 2 . 1 Melee . | . . . . . Ram . | . . . . . Kick . | . . . . . Crush . | . . . . . Escape Stasis . | . . . . . Rewire . | . . . . . Trap . | . . . . . Miscellaneous . | . . . . . Route ------- -11/Scrapyard -10/Materials (discovered 2 exits: [*Mat] / *Min) -10/Mines -10/Exiles -9/Mines History --------- Turn | Location | Event 11 | -11/Scrapyard | Discovered new exit (range 15) 144 | -11/Scrapyard | Entered Materials 221 | -10/Materials | Discovered new exit (range 16) 303 | -10/Materials | Build established: Mutant 451 | -10/Materials | Identified exit to Mines 532 | -10/Materials | Entered Mines 596 | -10/Mines | Deemed a non-threat by the Exiles lab entrance 596 | -10/Mines | Discovered new exit (range 5) 602 | -10/Mines | Entered Exiles 642 | -10/Exiles | Met 8R-AWN 670 | -10/Exiles | Met EX-HEX 718 | -10/Exiles | Met EX-BIN 735 | -10/Exiles | Aligned with FarCom system 737 | -10/Exiles | Given EX-Vault access code 777 | -10/Exiles | Opened EX-Vault 788 | -10/Exiles | Found Flying Fortress v7 819 | -10/Exiles | Warned to stay clear of 0b10 Research branches 864 | -10/Exiles | Met EX-DEC 919 | -10/Exiles | Discovered new exit (range 14) 938 | -10/Exiles | Left Exiles lab with Flying Fortress v7 938 | -10/Exiles | Entered Mines 939 | -9/Mines | Assembled infested the area 993 | -9/Mines | Core integrity fell below 50% 1008 | -9/Mines | Core integrity fell below 20% 1014 | -9/Mines | Destroyed by D-53 Grenadier with Mini Grenade Launcher Last Messages --------------- 00953_ as-20931 destroyed. 00954_ The unstable cave ceiling collapses. 00954_ Lgt. Ion Engine destroyed. 00955_ as-87360 destroyed. 00955_ as-75208 destroyed. 00958_ The unstable cave ceiling collapses. 00960_ as-33409 destroyed. 00960_ as-06152 destroyed. 00960_ G-34 Mercenary destroyed. 00961_ Acquired 10 matter. 00965_ G-34 Mercenary destroyed. 00972_ U-05 Engineer lays Concrete. 00974_ R-06 Scavenger collects Ion Engine. 00983_ Particle Gun destroyed. 00983_ Matter Pump disabled. 00989_ The unstable cave ceiling collapses. 00989_ Lgt. Treads destroyed. 00994_ Particle Gun destroyed. 01002_ Ion Engine destroyed. 01004_ The unstable cave ceiling collapses. Map ----- +----------------------------------------------------+ | | | | | | | | | | | | | | | | | | | | | | | | | | | ??????????????????????????###????????????????????? | | ?????????????????????????####????????????????????? | | ?????????????????????????## ????????????????????? | | ?????????????????#####??## ?????????????????????? | | ????????????????########## ?????????????????????? | | ????????????????### #### ?????????????????????? | | ????????????????## ??????????????????????? | | ????????????????# ??????????????????????? | | ???????????????????? ??????????????????????? | | ????????????????????? #?????????????????????? | | ?????????????????????? ##?????????????????????? | | ??????????????????????## ##?????????????????????? | | ??????????????????????## @##?????????????????????? | | ?????????????????????### ##?????????????????????? | | ????????????????????#### ###????????????????????? | | ????????????????????### ####???????????????????? | | ???????????????????### ###???????????????????? | | ???????????????????### ##???????????????????? | | ???????????????????## ###??????????????????? | | ???????????????????### ###?????????????????? | | ???????????????????## ##?????????????????? | | ???????????????????## d # ##?????????????????? | | ???????????????????## d ###?????????????????? | | ???????????????????## ###?????????????????? | | ???????????????????## ##?????????????????? | | ???????????????????## ###?????????????????? | | ???????????????????### ###?????????????????? | | ???????????????????## # ##??????????????????? | | ??????????????????### # ###??????????????????? | | ??????????????????## ######??????????????? | | ??????????????????### ## ###?????????????? | | ??????????????????#### ### ##?????????? | | ???????????????????### " ##?????????? | | ???????????????????## " ##?????????? | | ???????????????????## " ## ######?????????? | | ???????????????????## ### #### #?????????? | | ???????????????????### ####### ?????????????? | +----------------------------------------------------+ Best States ------------- Heat Dissipation 25 Energy Generation 14 Energy Capacity 250 Matter Stores 300 Matter Capacity 300 Sight Range 16 Terrain Scan Range 16 Terrain Scan Density 10 Evasion (%) 40 Recoil Reduction 2 Item Schematics ----------------- None Robot Schematics ------------------ None Fabricated ------------ Nothing Repaired ---------- Nothing Alien Tech Used ----------------- None Achievements -------------- None Challenges ------------ None Game ------ Seed ConstructChipPit Manual? 0 Play Time 00:09:04 Cumulative 26.9 hours Start 2025.08.06 @ 21:39:47 End 2025.08.06 @ 21:47:57 Sessions 1 Manual Loads 0 Difficulty Rogue Special Mode None Game No. 54 Rogue 51 Adventurer 3 Explorer 0 Win Type - Total 0 Types 0/0/0/0/0/0/0/0/0/0 Lore% 15 Gallery% 20 Achievement% 23 Wizard Run 0 Options --------- Layout 1 ASCII 0 Keyboard 0 Movement Mouse Keybinds 0 Fullscreen 1 Font 24/Smallcaps Map View 50x35 Zoom Use 0% Tactical HUD 1 Map Filters NONE Filters NONE Steam 1 RUN: b4226c95-c286-40b3-aebd-c0069787e801